[Event "Titled Tuesday Blitz October 11 Early 2022"]
[White "Carlsen, Magnus"]
[Black "Yeletsky, Ivan"]
[WhiteFideId "1503014"]
[BlackFideId "24180327"]
[WhiteElo "2830"]
[BlackElo "2391"]
[Result "1-0"]
[Round "06"]
[TimeControl "180+1"]
[Date "2022.10.11"]
[WhiteClock "0:01:14"]
[BlackClock "0:00:06"]

1. a4 {[%clk 0:03:00]}  h5 {[%clk 0:02:37]} 2. e4 {[%clk 0:02:56]}  e6 {[%clk 0:02:37]} 3. d4 {[%clk 0:02:53]}  d5 {[%clk 0:02:37]} 4. Bd3 {[%clk 0:02:50]}  dxe4 {[%clk 0:02:34]} 5. Bxe4 {[%clk 0:02:50]}  Nf6 {[%clk 0:02:34]} 6. Bd3 {[%clk 0:02:46]}  Nc6 {[%clk 0:02:33]} 7. Nf3 {[%clk 0:02:45]}  Nb4 {[%clk 0:02:27]} 8. Bb5+ {[%clk 0:02:44]}  c6 {[%clk 0:02:27]} 9. Be2 {[%clk 0:02:40]}  Be7 {[%clk 0:02:26]} 10. c3 {[%clk 0:02:38]}  Nbd5 {[%clk 0:02:26]} 11. O-O {[%clk 0:02:34]}  b6 {[%clk 0:02:25]} 12. Ne5 {[%clk 0:02:28]}  Bb7 {[%clk 0:02:25]} 13. Bf3 {[%clk 0:02:28]}  Qc7 {[%clk 0:02:18]} 14. a5 {[%clk 0:02:29]}  bxa5 {[%clk 0:02:11]} 15. Nd2 {[%clk 0:02:23]}  c5 {[%clk 0:02:04]} 16. Qa4+ {[%clk 0:02:20]}  Kf8 {[%clk 0:02:04]} 17. c4 {[%clk 0:02:19]}  Nb6 {[%clk 0:02:01]} 18. Qxa5 {[%clk 0:02:19]}  cxd4 {[%clk 0:02:00]} 19. b3 {[%clk 0:02:14]}  Bd6 {[%clk 0:01:55]} 20. Ba3 {[%clk 0:02:12]}  Bxa3 {[%clk 0:01:52]} 21. Rxa3 {[%clk 0:02:10]}  Kg8 {[%clk 0:01:47]} 22. Rfa1 {[%clk 0:02:00]}  Ng4 {[%clk 0:01:42]} 23. Bxb7 {[%clk 0:01:53]}  Qxb7 {[%clk 0:01:42]} 24. Nef3 {[%clk 0:01:53]}  d3 {[%clk 0:01:31]} 25. h3 {[%clk 0:01:53]}  Nf6 {[%clk 0:01:30]} 26. Ne5 {[%clk 0:01:54]}  Rh6 {[%clk 0:01:21]} 27. Ndf3 {[%clk 0:01:47]}  Nbd7 {[%clk 0:01:13]} 28. Nxd3 {[%clk 0:01:41]}  Ne4 {[%clk 0:01:13]} 29. Qe1 {[%clk 0:01:35]}  Rf6 {[%clk 0:01:04]} 30. Qe3 {[%clk 0:01:35]}  a6 {[%clk 0:01:01]} 31. b4 {[%clk 0:01:35]}  Nd6 {[%clk 0:00:52]} 32. Nd2 {[%clk 0:01:28]}  Rg6 {[%clk 0:00:49]} 33. Nf4 {[%clk 0:01:25]}  Rh6 {[%clk 0:00:37]} 34. b5 {[%clk 0:01:22]}  Nf5 {[%clk 0:00:25]} 35. Qe4 {[%clk 0:01:18]}  Qb8 {[%clk 0:00:11]} 36. Rxa6 {[%clk 0:01:17]}  Rxa6 {[%clk 0:00:11]} 37. Rxa6 {[%clk 0:01:17]}  Kh7 {[%clk 0:00:09]} 38. Nf3 {[%clk 0:01:14]}  Nc5 {[%clk 0:00:08]} 39. Ng5+ {[%clk 0:01:13]}  Kg8 {[%clk 0:00:06]} 40. Ra8 {[%clk 0:01:14]} 1-0


[Site "https://www.chess.com"]

[Event "Titled Tuesday Blitz October 11 Early 2022"]
[White "Cnejev, Vladimir-Alexandru"]
[Black "Tarasova, Viktoriya"]
[WhiteFideId "1260898"]
[BlackFideId "4175840"]
[WhiteElo "2193"]
[BlackElo "2182"]
[Result "1-0"]
[Round "06"]
[TimeControl "180+1"]
[Date "2022.10.12"]
[WhiteClock "0:00:33"]
[BlackClock "0:00:10"]

1. e4 {[%clk 0:02:54]}  e5 {[%clk 0:02:59]} 2. Nf3 {[%clk 0:02:54]}  Nc6 {[%clk 0:02:58]} 3. Bb5 {[%clk 0:02:55]}  Nf6 {[%clk 0:02:57]} 4. O-O {[%clk 0:02:55]}  Nxe4 {[%clk 0:02:56]} 5. d4 {[%clk 0:02:55]}  Nd6 {[%clk 0:02:55]} 6. Bxc6 {[%clk 0:02:55]}  dxc6 {[%clk 0:02:56]} 7. dxe5 {[%clk 0:02:56]}  Nf5 {[%clk 0:02:57]} 8. Qxd8+ {[%clk 0:02:56]}  Kxd8 {[%clk 0:02:57]} 9. Rd1+ {[%clk 0:02:55]}  Ke8 {[%clk 0:02:57]} 10. Nc3 {[%clk 0:02:55]}  h6 {[%clk 0:02:56]} 11. Ne4 {[%clk 0:02:49]}  Be6 {[%clk 0:02:55]} 12. g4 {[%clk 0:02:44]}  Ne7 {[%clk 0:02:55]} 13. h3 {[%clk 0:02:45]}  Ng6 {[%clk 0:02:45]} 14. b3 {[%clk 0:02:39]}  Be7 {[%clk 0:02:44]} 15. Bb2 {[%clk 0:02:37]}  Rd8 {[%clk 0:02:43]} 16. c4 {[%clk 0:02:36]}  Nh4 {[%clk 0:02:26]} 17. Nxh4 {[%clk 0:02:34]}  Bxh4 {[%clk 0:02:25]} 18. f4 {[%clk 0:02:34]}  g6 {[%clk 0:02:18]} 19. Nc5 {[%clk 0:02:29]}  Rxd1+ {[%clk 0:01:59]} 20. Rxd1 {[%clk 0:02:28]}  b6 {[%clk 0:01:59]} 21. Na6 {[%clk 0:02:04]}  Bd8 {[%clk 0:01:53]} 22. Nb4 {[%clk 0:02:03]}  Be7 {[%clk 0:00:56]} 23. Nxc6 {[%clk 0:02:00]}  h5 {[%clk 0:00:55]} 24. Ba3 {[%clk 0:01:40]}  Bh4 {[%clk 0:00:41]} 25. g5 {[%clk 0:01:40]}  Bd7 {[%clk 0:00:35]} 26. Nb8 {[%clk 0:01:26]}  Bxh3 {[%clk 0:00:30]} 27. Bb2 {[%clk 0:00:52]}  Be6 {[%clk 0:00:25]} 28. Nc6 {[%clk 0:00:48]}  Kf8 {[%clk 0:00:18]} 29. Kg2 {[%clk 0:00:48]}  Kg7 {[%clk 0:00:17]} 30. Rh1 {[%clk 0:00:38]}  Bc8 {[%clk 0:00:13]} 31. e6+ {[%clk 0:00:34]}  f6 {[%clk 0:00:10]} 32. Bxf6+ {[%clk 0:00:34]}  Kh7 {[%clk 0:00:10]} 33. Bxh8 {[%clk 0:00:33]} 1-0


[Site "https://www.chess.com"]

[Event "Titled Tuesday Blitz October 11 Early 2022"]
[White "Costachi, Mihnea"]
[Black "Horak, Martin"]
[WhiteFideId "1217518"]
[BlackFideId "367095"]
[WhiteElo "2437"]
[BlackElo "2091"]
[Result "1-0"]
[Round "06"]
[TimeControl "180+1"]
[Date "2022.10.12"]
[WhiteClock "0:00:49"]
[BlackClock "0:00:03"]

1. e4 {[%clk 0:03:00]}  c5 {[%clk 0:02:59]} 2. Nf3 {[%clk 0:03:00]}  d6 {[%clk 0:02:59]} 3. b3 {[%clk 0:03:00]}  Nf6 {[%clk 0:02:57]} 4. d3 {[%clk 0:02:59]}  g6 {[%clk 0:02:56]} 5. Bb2 {[%clk 0:03:00]}  Bg7 {[%clk 0:02:56]} 6. g3 {[%clk 0:03:00]}  O-O {[%clk 0:02:57]} 7. Bg2 {[%clk 0:03:01]}  Nc6 {[%clk 0:02:57]} 8. O-O {[%clk 0:03:01]}  Rb8 {[%clk 0:02:42]} 9. a4 {[%clk 0:03:00]}  a6 {[%clk 0:02:42]} 10. Re1 {[%clk 0:02:59]}  b5 {[%clk 0:02:41]} 11. axb5 {[%clk 0:03:00]}  axb5 {[%clk 0:02:42]} 12. Qc1 {[%clk 0:02:59]}  e5 {[%clk 0:02:07]} 13. Nbd2 {[%clk 0:02:48]}  Ne8 {[%clk 0:01:43]} 14. Nf1 {[%clk 0:02:43]}  Be6 {[%clk 0:01:32]} 15. Ne3 {[%clk 0:02:41]}  Nd4 {[%clk 0:01:29]} 16. Nd5 {[%clk 0:02:33]}  Bxd5 {[%clk 0:01:24]} 17. exd5 {[%clk 0:02:33]}  f5 {[%clk 0:01:15]} 18. Qd1 {[%clk 0:02:24]}  Nxf3+ {[%clk 0:01:12]} 19. Bxf3 {[%clk 0:02:22]}  Nf6 {[%clk 0:01:08]} 20. Bg2 {[%clk 0:02:20]}  Ra8 {[%clk 0:01:07]} 21. Qe2 {[%clk 0:02:15]}  b4 {[%clk 0:01:05]} 22. c3 {[%clk 0:02:09]}  bxc3 {[%clk 0:01:04]} 23. Bxc3 {[%clk 0:02:10]}  Qb6 {[%clk 0:01:04]} 24. Rxa8 {[%clk 0:01:50]}  Rxa8 {[%clk 0:01:03]} 25. Rb1 {[%clk 0:01:51]}  Ra3 {[%clk 0:00:56]} 26. Qb2 {[%clk 0:01:49]}  Qa6 {[%clk 0:00:55]} 27. b4 {[%clk 0:01:38]}  Ra2 {[%clk 0:00:49]} 28. Qb3 {[%clk 0:01:38]}  Ra3 {[%clk 0:00:41]} 29. Qc2 {[%clk 0:01:39]}  Ra2 {[%clk 0:00:37]} 30. Rb2 {[%clk 0:01:29]}  Ra1+ {[%clk 0:00:32]} 31. Bf1 {[%clk 0:01:28]}  cxb4 {[%clk 0:00:28]} 32. Rxb4 {[%clk 0:01:21]}  h5 {[%clk 0:00:26]} 33. Bxa1 {[%clk 0:01:20]}  Qxa1 {[%clk 0:00:25]} 34. Rb7 {[%clk 0:01:18]}  e4 {[%clk 0:00:13]} 35. Qb2 {[%clk 0:00:59]}  Qxb2 {[%clk 0:00:09]} 36. Rxb2 {[%clk 0:00:59]}  Nxd5 {[%clk 0:00:05]} 37. Rb8+ {[%clk 0:00:59]}  Kh7 {[%clk 0:00:05]} 38. dxe4 {[%clk 0:01:00]}  fxe4 {[%clk 0:00:06]} 39. Bg2 {[%clk 0:01:01]}  Nf6 {[%clk 0:00:06]} 40. Bh3 {[%clk 0:00:53]}  d5 {[%clk 0:00:06]} 41. Rd8 {[%clk 0:00:52]}  Kh6 {[%clk 0:00:05]} 42. Be6 {[%clk 0:00:53]}  Kg5 {[%clk 0:00:05]} 43. Bxd5 {[%clk 0:00:53]}  Nxd5 {[%clk 0:00:05]} 44. Rxd5+ {[%clk 0:00:53]}  Kf6 {[%clk 0:00:06]} 45. Kf1 {[%clk 0:00:52]}  Bh6 {[%clk 0:00:06]} 46. Ke2 {[%clk 0:00:50]}  Bf8 {[%clk 0:00:06]} 47. Rb5 {[%clk 0:00:51]}  Bd6 {[%clk 0:00:05]} 48. Ke3 {[%clk 0:00:51]}  Be7 {[%clk 0:00:02]} 49. Kxe4 {[%clk 0:00:51]}  Bd6 {[%clk 0:00:03]} 50. Rb6 {[%clk 0:00:50]}  Ke6 {[%clk 0:00:03]} 51. h4 {[%clk 0:00:49]} 1-0


[Site "https://www.chess.com"]

[Event "Titled Tuesday Blitz October 11 Early 2022"]
[White "Dehtiarov, Roman"]
[Black "Saucey, Michel"]
[WhiteFideId "14186640"]
[BlackFideId "601845"]
[WhiteElo "2200"]
[BlackElo "2253"]
[Result "1-0"]
[Round "06"]
[TimeControl "180+1"]
[Date "2022.10.12"]
[WhiteClock "0:00:07"]
[BlackClock "0:00:04"]

1. e4 {[%clk 0:02:57]}  c5 {[%clk 0:02:59]} 2. Nc3 {[%clk 0:02:57]}  Nc6 {[%clk 0:02:58]} 3. f4 {[%clk 0:02:48]}  g6 {[%clk 0:02:57]} 4. Nf3 {[%clk 0:02:46]}  Bg7 {[%clk 0:02:57]} 5. Bb5 {[%clk 0:02:46]}  Nd4 {[%clk 0:02:57]} 6. O-O {[%clk 0:02:45]}  Nxb5 {[%clk 0:02:52]} 7. Nxb5 {[%clk 0:02:46]}  d5 {[%clk 0:02:50]} 8. e5 {[%clk 0:02:45]}  a6 {[%clk 0:02:45]} 9. Nc3 {[%clk 0:02:44]}  d4 {[%clk 0:02:43]} 10. Ne4 {[%clk 0:02:44]}  b6 {[%clk 0:02:42]} 11. Qe2 {[%clk 0:02:39]}  Nh6 {[%clk 0:02:34]} 12. a4 {[%clk 0:02:35]}  O-O {[%clk 0:02:33]} 13. a5 {[%clk 0:02:34]}  Bb7 {[%clk 0:02:32]} 14. d3 {[%clk 0:02:30]}  f6 {[%clk 0:02:27]} 15. exf6 {[%clk 0:02:27]}  exf6 {[%clk 0:02:27]} 16. axb6 {[%clk 0:02:27]}  Qxb6 {[%clk 0:02:26]} 17. Ned2 {[%clk 0:02:13]}  Rae8 {[%clk 0:02:21]} 18. Qd1 {[%clk 0:02:10]}  Nf5 {[%clk 0:02:20]} 19. Nc4 {[%clk 0:02:09]}  Qc7 {[%clk 0:02:19]} 20. Bd2 {[%clk 0:01:49]}  Ne3 {[%clk 0:02:17]} 21. Bxe3 {[%clk 0:01:47]}  dxe3 {[%clk 0:02:17]} 22. Qe2 {[%clk 0:01:47]}  Qxf4 {[%clk 0:02:12]} 23. Nfe5 {[%clk 0:01:34]}  Qg5 {[%clk 0:01:57]} 24. Nd7 {[%clk 0:01:16]}  Rd8 {[%clk 0:01:45]} 25. Nxf8 {[%clk 0:01:11]}  Bxf8 {[%clk 0:01:36]} 26. Rae1 {[%clk 0:00:49]}  Re8 {[%clk 0:01:24]} 27. b3 {[%clk 0:00:31]}  f5 {[%clk 0:01:22]} 28. Rf3 {[%clk 0:00:18]}  f4 {[%clk 0:01:13]} 29. Ref1 {[%clk 0:00:14]}  Bxf3 {[%clk 0:01:01]} 30. Qxf3 {[%clk 0:00:15]}  e2 {[%clk 0:00:57]} 31. Re1 {[%clk 0:00:15]}  Qe7 {[%clk 0:00:39]} 32. Nd2 {[%clk 0:00:10]}  Qe3+ {[%clk 0:00:33]} 33. Qxe3 {[%clk 0:00:09]}  Rxe3 {[%clk 0:00:33]} 34. Kf2 {[%clk 0:00:09]}  Kf7 {[%clk 0:00:22]} 35. Ne4 {[%clk 0:00:08]}  Ke6 {[%clk 0:00:20]} 36. Ng5+ {[%clk 0:00:05]}  Kd5 {[%clk 0:00:20]} 37. Nxh7 {[%clk 0:00:05]}  Be7 {[%clk 0:00:19]} 38. Rxe2 {[%clk 0:00:04]}  Rxe2+ {[%clk 0:00:19]} 39. Kxe2 {[%clk 0:00:05]}  Ke6 {[%clk 0:00:18]} 40. Kf3 {[%clk 0:00:05]}  Kf5 {[%clk 0:00:17]} 41. h4 {[%clk 0:00:05]}  Bxh4 {[%clk 0:00:16]} 42. Nf8 {[%clk 0:00:05]}  g5 {[%clk 0:00:15]} 43. Nd7 {[%clk 0:00:05]}  g4+ {[%clk 0:00:15]} 44. Ke2 {[%clk 0:00:06]}  Be7 {[%clk 0:00:14]} 45. Nb6 {[%clk 0:00:06]}  Bf6 {[%clk 0:00:11]} 46. Nd7 {[%clk 0:00:06]}  Bd4 {[%clk 0:00:10]} 47. Nb6 {[%clk 0:00:05]}  f3+ {[%clk 0:00:08]} 48. gxf3 {[%clk 0:00:05]}  g3 {[%clk 0:00:09]} 49. Kf1 {[%clk 0:00:05]}  Kf4 {[%clk 0:00:09]} 50. Kg2 {[%clk 0:00:06]}  Bf2 {[%clk 0:00:07]} 51. Nd5+ {[%clk 0:00:05]}  Ke5 {[%clk 0:00:07]} 52. Nc3 {[%clk 0:00:06]}  Kf4 {[%clk 0:00:06]} 53. Ne4 {[%clk 0:00:06]}  Be1 {[%clk 0:00:05]} 54. Nxc5 {[%clk 0:00:06]}  Ke3 {[%clk 0:00:05]} 55. Ne4 {[%clk 0:00:07]}  Kf4 {[%clk 0:00:05]} 56. c4 {[%clk 0:00:07]}  a5 {[%clk 0:00:05]} 57. c5 {[%clk 0:00:07]}  Ke5 {[%clk 0:00:05]} 58. Nxg3 {[%clk 0:00:06]}  Kd5 {[%clk 0:00:04]} 59. Ne4 {[%clk 0:00:07]} 1-0


[Site "https://www.chess.com"]

[Event "Titled Tuesday Blitz October 11 Early 2022"]
[White "Dilmukhametov, Artur"]
[Black "Broca Jimenez, Fernando"]
[WhiteFideId "24179922"]
[BlackFideId "5104742"]
[WhiteElo "2197"]
[BlackElo "2062"]
[Result "0-1"]
[Round "06"]
[TimeControl "180+1"]
[Date "2022.10.12"]
[WhiteClock "0:01:28"]
[BlackClock "0:00:55"]

1. e4 {[%clk 0:02:55]}  c5 {[%clk 0:03:00]} 2. c3 {[%clk 0:02:53]}  Nf6 {[%clk 0:02:59]} 3. e5 {[%clk 0:02:52]}  Nd5 {[%clk 0:02:59]} 4. d4 {[%clk 0:02:51]}  cxd4 {[%clk 0:03:00]} 5. cxd4 {[%clk 0:02:51]}  Nc6 {[%clk 0:03:00]} 6. Nf3 {[%clk 0:02:50]}  d6 {[%clk 0:02:59]} 7. Bc4 {[%clk 0:02:51]}  Nb6 {[%clk 0:02:57]} 8. Bb5 {[%clk 0:02:49]}  dxe5 {[%clk 0:02:49]} 9. Nxe5 {[%clk 0:02:42]}  Bd7 {[%clk 0:02:48]} 10. O-O {[%clk 0:02:35]}  Nxe5 {[%clk 0:02:46]} 11. Bxd7+ {[%clk 0:02:33]}  Nexd7 {[%clk 0:02:46]} 12. Re1 {[%clk 0:02:27]}  e6 {[%clk 0:02:43]} 13. Nc3 {[%clk 0:02:26]}  Be7 {[%clk 0:02:42]} 14. d5 {[%clk 0:02:25]}  Nf6 {[%clk 0:02:18]} 15. dxe6 {[%clk 0:02:22]}  Qxd1 {[%clk 0:02:18]} 16. exf7+ {[%clk 0:02:20]}  Kxf7 {[%clk 0:02:17]} 17. Rxd1 {[%clk 0:02:20]}  Rad8 {[%clk 0:02:17]} 18. Bg5 {[%clk 0:02:19]}  Rxd1+ {[%clk 0:02:14]} 19. Rxd1 {[%clk 0:02:19]}  Rd8 {[%clk 0:02:14]} 20. f3 {[%clk 0:02:15]}  Rxd1+ {[%clk 0:02:08]} 21. Nxd1 {[%clk 0:02:15]}  Bc5+ {[%clk 0:01:58]} 22. Kf1 {[%clk 0:02:12]}  Bd4 {[%clk 0:01:59]} 23. Ke2 {[%clk 0:02:10]}  Nc4 {[%clk 0:01:42]} 24. b3 {[%clk 0:02:03]}  Nb2 {[%clk 0:01:38]} 25. Nxb2 {[%clk 0:02:00]}  Bxb2 {[%clk 0:01:39]} 26. Kd3 {[%clk 0:02:00]}  Ke6 {[%clk 0:01:34]} 27. Kc4 {[%clk 0:01:59]}  Nd5 {[%clk 0:01:25]} 28. Kc5 {[%clk 0:01:48]}  Ba3+ {[%clk 0:01:20]} 29. Kb5 {[%clk 0:01:46]}  Bd6 {[%clk 0:01:20]} 30. Bc1 {[%clk 0:01:41]}  Bxh2 {[%clk 0:01:16]} 31. Bb2 {[%clk 0:01:37]}  Be5 {[%clk 0:01:12]} 32. Bc1 {[%clk 0:01:35]}  a6+ {[%clk 0:01:08]} 33. Kc5 {[%clk 0:01:32]}  Bd6+ {[%clk 0:01:02]} 34. Kd4 {[%clk 0:01:29]}  b6 {[%clk 0:00:58]} 35. Bb2 {[%clk 0:01:28]}  Be5+ {[%clk 0:00:55]} 0-1


[Site "https://www.chess.com"]

[Event "Titled Tuesday Blitz October 11 Early 2022"]
[White "Drozdowski, Kacper"]
[Black "Andreikin, Dmitry"]
[WhiteFideId "1136720"]
[BlackFideId "4158814"]
[WhiteElo "2485"]
[BlackElo "2736"]
[Result "1/2-1/2"]
[Round "06"]
[TimeControl "180+1"]
[Date "2022.10.11"]
[WhiteClock "0:01:21"]
[BlackClock "0:01:15"]

1. e4 {[%clk 0:03:00]}  e6 {[%clk 0:02:58]} 2. d4 {[%clk 0:03:00]}  d5 {[%clk 0:02:59]} 3. Nd2 {[%clk 0:03:00]}  c5 {[%clk 0:02:58]} 4. exd5 {[%clk 0:03:00]}  exd5 {[%clk 0:02:57]} 5. Ngf3 {[%clk 0:03:00]}  Nc6 {[%clk 0:02:58]} 6. Bb5 {[%clk 0:03:00]}  Bd6 {[%clk 0:02:57]} 7. dxc5 {[%clk 0:02:59]}  Bxc5 {[%clk 0:02:57]} 8. O-O {[%clk 0:03:00]}  Ne7 {[%clk 0:02:58]} 9. Nb3 {[%clk 0:03:00]}  Bb6 {[%clk 0:02:58]} 10. Re1 {[%clk 0:02:57]}  O-O {[%clk 0:02:57]} 11. h3 {[%clk 0:02:54]}  Nf5 {[%clk 0:02:54]} 12. c3 {[%clk 0:02:46]}  Bxf2+ {[%clk 0:02:48]} 13. Kxf2 {[%clk 0:02:40]}  Qb6+ {[%clk 0:02:48]} 14. Nbd4 {[%clk 0:02:31]}  Ncxd4 {[%clk 0:02:48]} 15. Nxd4 {[%clk 0:02:24]}  Nxd4 {[%clk 0:02:48]} 16. Qxd4 {[%clk 0:02:23]}  Qxb5 {[%clk 0:02:48]} 17. b3 {[%clk 0:02:12]}  Bf5 {[%clk 0:02:47]} 18. Re5 {[%clk 0:02:06]}  Be6 {[%clk 0:02:24]} 19. c4 {[%clk 0:02:02]}  Qb4 {[%clk 0:02:04]} 20. Bd2 {[%clk 0:01:53]}  Qb6 {[%clk 0:02:00]} 21. Qxb6 {[%clk 0:01:52]}  axb6 {[%clk 0:02:00]} 22. cxd5 {[%clk 0:01:52]}  Rfd8 {[%clk 0:01:54]} 23. dxe6 {[%clk 0:01:43]}  Rxd2+ {[%clk 0:01:55]} 24. Kg3 {[%clk 0:01:33]}  fxe6 {[%clk 0:01:19]} 25. Rxe6 {[%clk 0:01:33]}  h6 {[%clk 0:01:19]} 26. Rxb6 {[%clk 0:01:32]}  Rc8 {[%clk 0:01:19]} 27. Rxb7 {[%clk 0:01:25]}  Rc3+ {[%clk 0:01:19]} 28. Kh2 {[%clk 0:01:25]}  Rcc2 {[%clk 0:01:19]} 29. Rg1 {[%clk 0:01:24]}  Rxa2 {[%clk 0:01:19]} 30. Re7 {[%clk 0:01:23]}  Rdb2 {[%clk 0:01:13]} 31. Re3 {[%clk 0:01:22]}  Ra3 {[%clk 0:01:14]} 32. Rg3 {[%clk 0:01:20]}  Raxb3 {[%clk 0:01:14]} 33. Rxb3 {[%clk 0:01:20]}  Rxb3 {[%clk 0:01:15]} 34. Rf1 {[%clk 0:01:21]} 1/2-1/2


[Site "https://www.chess.com"]

[Event "Titled Tuesday Blitz October 11 Early 2022"]
[White "Fernandez Garcia, Gumersindo"]
[Black "Karas, Marek"]
[WhiteFideId "24516740"]
[BlackFideId "14928558"]
[WhiteElo "2072"]
[BlackElo "2220"]
[Result "1-0"]
[Round "06"]
[TimeControl "180+1"]
[Date "2022.10.12"]
[WhiteClock "0:01:01"]
[BlackClock "0:01:29"]

1. d4 {[%clk 0:03:00]}  Nf6 {[%clk 0:02:59]} 2. c4 {[%clk 0:02:38]}  c5 {[%clk 0:02:59]} 3. d5 {[%clk 0:02:38]}  b5 {[%clk 0:02:59]} 4. cxb5 {[%clk 0:02:38]}  a6 {[%clk 0:03:00]} 5. bxa6 {[%clk 0:02:39]}  Bxa6 {[%clk 0:03:00]} 6. Nc3 {[%clk 0:02:38]}  d6 {[%clk 0:03:00]} 7. e4 {[%clk 0:02:38]}  Bxf1 {[%clk 0:03:01]} 8. Kxf1 {[%clk 0:02:38]}  g6 {[%clk 0:03:01]} 9. g3 {[%clk 0:02:39]}  Bg7 {[%clk 0:03:02]} 10. Kg2 {[%clk 0:02:39]}  O-O {[%clk 0:03:02]} 11. Nf3 {[%clk 0:02:40]}  Nbd7 {[%clk 0:03:03]} 12. Re1 {[%clk 0:02:38]}  Qb6 {[%clk 0:03:04]} 13. Qc2 {[%clk 0:02:37]}  Rfb8 {[%clk 0:03:04]} 14. h3 {[%clk 0:02:37]}  Ne8 {[%clk 0:03:04]} 15. Nd2 {[%clk 0:02:29]}  Nc7 {[%clk 0:03:00]} 16. Nc4 {[%clk 0:02:28]}  Qa6 {[%clk 0:03:00]} 17. Qe2 {[%clk 0:02:27]}  Nb5 {[%clk 0:02:58]} 18. Nxb5 {[%clk 0:02:20]}  Rxb5 {[%clk 0:02:58]} 19. Bg5 {[%clk 0:02:15]}  Rb4 {[%clk 0:02:35]} 20. Rac1 {[%clk 0:02:01]}  Kf8 {[%clk 0:02:29]} 21. a3 {[%clk 0:01:55]}  Ra4 {[%clk 0:02:26]} 22. f4 {[%clk 0:01:43]}  Nb6 {[%clk 0:02:24]} 23. Nxb6 {[%clk 0:01:37]}  Qxb6 {[%clk 0:02:25]} 24. e5 {[%clk 0:01:27]}  dxe5 {[%clk 0:02:09]} 25. fxe5 {[%clk 0:01:27]}  Qb3 {[%clk 0:02:06]} 26. Rcd1 {[%clk 0:01:18]}  Rb8 {[%clk 0:01:57]} 27. d6 {[%clk 0:01:07]}  exd6 {[%clk 0:01:47]} 28. exd6 {[%clk 0:01:07]}  Qxb2 {[%clk 0:01:47]} 29. Rd2 {[%clk 0:01:07]}  Qb7+ {[%clk 0:01:45]} 30. Kh2 {[%clk 0:01:06]}  Bd4 {[%clk 0:01:39]} 31. Bh6+ {[%clk 0:01:03]}  Bg7 {[%clk 0:01:36]} 32. Qe7+ {[%clk 0:01:00]}  Qxe7 {[%clk 0:01:29]} 33. dxe7+ {[%clk 0:01:01]}  Ke8 {[%clk 0:01:29]} 34. Bxg7 {[%clk 0:01:01]} 1-0


[Site "https://www.chess.com"]

[Event "Titled Tuesday Blitz October 11 Early 2022"]
[White "Fernandez Hernandez, Gerardo"]
[Black "Krzywda, Andrzej"]
[WhiteFideId "2207400"]
[BlackFideId "1114565"]
[WhiteElo "2164"]
[BlackElo "2149"]
[Result "0-1"]
[Round "06"]
[TimeControl "180+1"]
[Date "2022.10.12"]
[WhiteClock "0:00:14"]
[BlackClock "0:00:44"]

1. e4 {[%clk 0:03:00]}  c5 {[%clk 0:03:00]} 2. d3 {[%clk 0:03:01]}  g6 {[%clk 0:02:59]} 3. g3 {[%clk 0:03:01]}  Bg7 {[%clk 0:03:00]} 4. Bg2 {[%clk 0:03:01]}  Nc6 {[%clk 0:03:00]} 5. f4 {[%clk 0:03:02]}  d6 {[%clk 0:02:58]} 6. Nf3 {[%clk 0:03:03]}  e6 {[%clk 0:02:58]} 7. O-O {[%clk 0:03:01]}  Nge7 {[%clk 0:02:58]} 8. c3 {[%clk 0:03:02]}  Rb8 {[%clk 0:02:57]} 9. Be3 {[%clk 0:03:02]}  b6 {[%clk 0:02:56]} 10. d4 {[%clk 0:03:02]}  Ba6 {[%clk 0:02:50]} 11. Re1 {[%clk 0:03:01]}  d5 {[%clk 0:02:50]} 12. e5 {[%clk 0:02:52]}  Nf5 {[%clk 0:02:48]} 13. Bf2 {[%clk 0:02:40]}  h5 {[%clk 0:02:42]} 14. Qa4 {[%clk 0:02:28]}  Qc8 {[%clk 0:02:42]} 15. dxc5 {[%clk 0:02:09]}  bxc5 {[%clk 0:02:37]} 16. Bxc5 {[%clk 0:02:09]}  Rxb2 {[%clk 0:02:36]} 17. Nbd2 {[%clk 0:01:51]}  Bf8 {[%clk 0:02:14]} 18. Bxf8 {[%clk 0:01:50]}  Kxf8 {[%clk 0:02:14]} 19. Qa3+ {[%clk 0:01:49]}  Kg7 {[%clk 0:02:11]} 20. Qxb2 {[%clk 0:01:49]}  Na5 {[%clk 0:02:09]} 21. Nd4 {[%clk 0:01:35]}  Ne7 {[%clk 0:01:54]} 22. Qa3 {[%clk 0:01:31]}  Qc7 {[%clk 0:01:51]} 23. N2b3 {[%clk 0:01:16]}  Nxb3 {[%clk 0:01:32]} 24. axb3 {[%clk 0:01:06]}  Bd3 {[%clk 0:01:32]} 25. Qxa7 {[%clk 0:01:03]}  Qd8 {[%clk 0:01:31]} 26. Qb7 {[%clk 0:00:53]}  h4 {[%clk 0:01:25]} 27. Ra7 {[%clk 0:00:50]}  Re8 {[%clk 0:01:21]} 28. Nc6 {[%clk 0:00:43]}  Qc8 {[%clk 0:01:18]} 29. Nxe7 {[%clk 0:00:31]}  Qc5+ {[%clk 0:01:18]} 30. Kh1 {[%clk 0:00:28]}  Rf8 {[%clk 0:00:54]} 31. Qc7 {[%clk 0:00:20]}  Qf2 {[%clk 0:00:52]} 32. Rg1 {[%clk 0:00:18]}  hxg3 {[%clk 0:00:52]} 33. h3 {[%clk 0:00:18]}  Be4 {[%clk 0:00:49]} 34. Qb7 {[%clk 0:00:13]}  Bxg2+ {[%clk 0:00:43]} 35. Rxg2 {[%clk 0:00:14]}  Qf1+ {[%clk 0:00:44]} 36. Rg1 {[%clk 0:00:14]}  Qxh3# {[%clk 0:00:44]} 0-1


[Site "https://www.chess.com"]